bitfinex/quotes_SOLUSD_20260213
["timestamp","ask_amount","ask_price","bid_price","bid_amount"]
[1770943045883,0.2,78.11,78.082,12.80704899]
[1770943046200,0.2,78.11,78.083,0.47749013]
[1770943048321,0.69361208,78.11,78.085,0.47749013]
[1770943049487,0.49361208,78.109,78.085,0.47749013]
[1770943049694,0.49361208,78.109,78.087,0.47749013]
[1770943050003,0.2,78.11,78.087,0.47749013]
[1770943051183,0.2,78.11,78.068,55.0]
[1770943051184,0.2,78.14,78.118,0.49664277]
[1770943051379,0.47121344,78.139,78.118,0.49664277]
[1770943052381,0.47121344,78.139,78.12,0.49664277]
[1770943052582,0.2,78.15,78.121,0.49664277]
[1770943053377,0.2,78.15,78.12,4.04017954]
[1770943053378,1e-08,78.15,78.122,0.47142709]
[1770943054182,0.47802091,78.148,78.122,0.47142709]
[1770943054403,0.47802091,78.148,78.11,4.04017954]
[1770943054404,0.47802091,78.137,78.115,55.06]
[1770943054602,0.47802091,78.129,78.101,12.80393336]
[1770943054903,0.47802091,78.129,78.102,0.47142709]
[1770943055686,1e-08,78.15,78.104,0.47142709]
[1770943055687,0.47802091,78.145,78.104,0.47142709]
[1770943055880,0.47802091,78.149,78.111,0.47142709]
[1770943056497,0.47802091,78.148,78.113,0.47142709]
[1770943058686,0.47802091,78.148,78.121,0.47142709]
[1770943061306,0.47802091,78.148,78.123,0.47142709]
[1770943063709,1e-08,78.15,78.125,0.47142709]
[1770943064294,1e-08,78.15,78.126,55.12]
[1770943064626,1e-08,78.15,78.127,0.47142709]
[1770943066224,1e-08,78.15,78.129,0.47142709]
[1770943069006,0.47802091,78.159,78.141,0.47142709]
[1770943069204,0.47802091,78.159,78.13,48.83731252]
[1770943069408,0.47802091,78.159,78.132,0.47142709]
[1770943070616,0.47802091,78.159,78.13,44.79713298]
[1770943070617,0.47802091,78.159,78.13,12.79918085]
[1770943070819,0.47802091,78.149,78.128,55.22]
[1770943071918,0.47802091,78.147,78.128,55.22]
[1770943072118,0.49570221,78.139,78.096,0.45888029]
[1770943072303,0.49570221,78.129,78.097,68.04458916]
[1770943072702,0.49570221,78.129,78.098,0.45888029]
[1770943072913,0.49570221,78.129,78.101,0.45888029]
[1770943073329,0.49570221,78.129,78.102,12.80376942]
[1770943073505,0.49570221,78.129,78.103,0.45888029]
[1770943076114,0.49570221,78.129,78.105,0.45888029]
[1770943077321,0.49570221,78.129,78.106,12.80311371]
[1770943080030,0.49570221,78.129,78.103,0.45888029]
[1770943081721,0.46933737,78.119,78.08,0.4521589]
[1770943081912,51.18048183,78.155,78.047,51.25087673]
[1770943081913,0.46933737,78.109,78.083,0.4521589]
[1770943082112,0.46933737,78.109,78.081,12.80721033]
[1770943083411,0.46933737,78.109,78.077,12.80786915]
[1770943084916,0.46933737,78.099,78.077,12.80786915]
[1770943085237,0.46933737,78.099,78.077,13.26002805]
[1770943086938,0.46933737,78.099,78.077,12.80786915]
[1770943087236,0.46933737,78.089,78.059,68.17081185]
[1770943087422,12.8044252,78.098,78.059,68.17081185]
[1770943087423,0.46933737,78.079,78.059,12.81081185]
[1770943087624,0.46933737,78.079,78.055,12.81147908]
[1770943088569,0.46933737,78.079,78.049,12.81246396]
[1770943088850,0.46933737,78.069,78.049,12.81246396]
[1770943089223,0.46933737,78.069,78.047,55.36]
[1770943090053,0.46933737,78.069,78.018,5.36086188]
[1770943090054,0.46933737,78.059,78.033,0.4521589]
[1770943090550,0.46933737,78.049,78.031,55.38]
[1770943090718,0.46933737,78.049,78.02,0.1]
[1770943090927,0.46933737,78.049,78.02,0.5521589]
[1770943091627,0.46933737,78.049,78.024,12.81656663]
[1770943092414,0.46933737,78.049,78.025,0.4521589]
[1770943092639,41.22,78.075,78.027,0.4521589]
[1770943092827,4.04017954,78.06,78.027,0.4521589]
[1770943093025,4.04017954,78.05,78.026,12.81624074]
[1770943093456,4.04017954,78.06,78.027,0.4521589]
[1770943094734,0.46933737,78.059,78.028,12.81591223]
[1770943094948,0.46933737,78.059,78.029,0.4521589]
[1770943095149,0.46933737,78.057,78.029,0.4521589]
[1770943096834,0.46933737,78.049,78.023,0.4521589]
[1770943097762,0.46933737,78.059,78.023,0.4521589]
[1770943098130,0.46933737,78.058,78.023,0.4521589]
[1770943099733,0.46933737,78.056,78.025,0.4521589]
[1770943102061,0.46933737,78.056,78.027,0.4521589]
[1770943102264,0.46933737,78.054,78.027,0.4521589]
[1770943104163,0.46933737,78.054,78.029,0.4521589]
[1770943106663,0.46933737,78.073,78.031,0.4521589]
[1770943106864,12.80836129,78.074,78.031,0.4521589]
[1770943106865,0.46933737,78.069,78.031,0.4521589]
[1770943108364,0.46933737,78.059,78.032,12.81525527]
[1770943108657,0.46933737,78.059,78.033,0.4521589]
[1770943109062,0.46933737,78.074,78.041,0.4521589]
[1770943109247,0.46933737,78.09,78.061,0.4521589]
[1770943109642,0.46933737,78.09,78.06,4.04442704]
[1770943109643,0.46933737,78.069,78.033,0.4521589]
[1770943109957,0.46933737,78.059,78.032,12.81525527]
[1770943111072,0.46933737,78.059,78.032,13.30393689]
[1770943111457,0.46933737,78.059,78.032,0.48868162]
[1770943111960,4.04442704,78.08,78.041,0.48868162]
[1770943112851,4.04442704,78.08,78.04,4.04442704]
[1770943112852,4.04442704,78.08,78.043,0.48868162]
[1770943113254,4.04442704,78.09,78.043,0.48868162]
[1770943113587,4.04442704,78.08,78.043,0.48868162]
[1770943113760,0.29124884,78.079,78.045,0.46240382]
[1770943114347,0.29124884,78.079,78.047,0.46240382]
[1770943114543,0.29124884,78.079,78.049,0.46240382]
[1770943116567,0.29124884,78.079,78.051,0.46240382]
[1770943116771,0.29124884,78.085,78.051,0.46240382]
[1770943119972,0.29124884,78.085,78.053,0.46240382]
[1770943120867,0.29124884,78.103,78.061,0.46240382]
[1770943121875,0.29124884,78.103,78.07,4.04442704]
[1770943122070,0.29124884,78.103,78.071,0.46240382]
[1770943123974,41.0,78.122,78.054,55.52]
[1770943123975,0.29124884,78.129,78.091,0.46240382]
[1770943125051,12.79606904,78.149,78.111,0.46240382]
[1770943125250,45.31567588,78.15,78.111,0.46240382]
[1770943125478,0.29124884,78.149,78.111,0.46240382]
[1770943125978,0.29124884,78.148,78.113,0.46240382]
[1770943126565,0.29124884,78.139,78.113,0.46240382]
[1770943127568,0.29124884,78.139,78.107,0.46240382]
[1770943127772,0.29124884,78.139,78.102,0.46240382]
[1770943127973,0.29124884,78.129,78.102,0.46240382]
[1770943128365,0.29124884,78.127,78.096,68.74715039]
[1770943128559,0.29124884,78.127,78.096,13.26715039]
[1770943128769,0.29124884,78.127,78.063,4.61729252]
[1770943128770,0.29124884,78.109,78.073,32.02102479]
[1770943128967,0.29124884,78.109,78.075,0.46240382]
[1770943130086,4.04442704,78.12,78.081,0.5]
[1770943131003,4.04442704,78.11,78.083,0.5]
[1770943132277,12.80098311,78.119,78.083,0.5]
[1770943133179,4.04442704,78.11,78.074,0.5]
[1770943133770,4.04442704,78.1,78.074,0.5]
[1770943133970,4.04442704,78.11,78.074,0.5]
[1770943136189,12.80262197,78.109,78.074,0.5]
[1770943136771,12.80262197,78.109,78.076,0.5]
[1770943137893,12.80262197,78.109,78.063,55.56]
[1770943137894,4.04442704,78.09,78.063,55.56]
[1770943138094,4.04442704,78.09,78.064,0.5]
[1770943138391,4.04442704,78.1,78.064,0.5]
[1770943138603,4.04442704,78.1,78.065,0.5]
[1770943138799,4.04442704,78.09,78.064,12.80984567]
[1770943138970,4.04442704,78.09,78.063,0.5]
[1770943139172,4.61729252,78.106,78.041,32.03429839]
[1770943139173,4.04442704,78.08,78.051,38.78]
[1770943139688,4.04442704,78.08,78.052,0.5]
[1770943140268,4.04442704,78.08,78.053,12.81180736]
[1770943140688,4.04442704,78.07,78.046,0.5]
[1770943140889,4.04442704,78.07,78.041,12.81377737]
[1770943141072,4.04442704,78.07,78.042,0.5]
[1770943141575,12.80754108,78.079,78.042,0.5]
[1770943141772,4.04442704,78.08,78.042,0.5]
[1770943141976,12.80590095,78.089,78.051,0.5]
[1770943142176,4.04442704,78.1,78.061,0.5]
[1770943142373,12.80426125,78.099,78.064,0.5]
[1770943145200,12.80426125,78.099,78.065,12.80983795]
[1770943145496,12.80426125,78.099,78.067,0.5]
[1770943147295,12.80426125,78.099,78.069,0.5]
[1770943148392,12.80339868,78.105,78.071,0.5]
[1770943148792,4.04442704,78.1,78.071,0.5]
[1770943149382,4.04442704,78.12,78.064,0.5]
[1770943149383,4.04442704,78.09,78.064,0.5]
[1770943149579,4.04442704,78.09,78.065,55.62]
[1770943150595,4.04442704,78.09,78.064,13.30994306]
[1770943150804,4.04442704,78.08,78.064,13.30994306]
[1770943151136,4.04442704,78.09,78.065,0.5]
[1770943151991,4.04442704,78.09,78.067,0.5]
[1770943152877,12.80426125,78.099,78.067,0.5]
[1770943153201,4.04442704,78.09,78.067,0.5]
[1770943154599,12.80590095,78.089,78.064,55.62]
[1770943154777,4.04442704,78.08,78.064,55.62]
[1770943154989,12.80590095,78.089,78.064,55.62]
[1770943155205,12.80590095,78.089,78.064,56.12]
[1770943155409,12.80590095,78.089,78.064,55.62]
[1770943155582,12.80590095,78.089,78.065,0.5]
[1770943156606,4.04442704,78.09,78.065,0.5]
[1770943156792,12.80517633,78.094,78.067,0.5]
[1770943157297,12.80452583,78.098,78.067,0.5]
[1770943157608,44.80344089,78.119,78.067,0.5]
[1770943157783,4.04442704,78.11,78.071,0.5]
[1770943158096,12.80262197,78.109,78.073,0.5]
[1770943159288,12.80262197,78.109,78.075,0.5]
[1770943160387,12.80262197,78.109,78.077,0.5]
[1770943162003,12.80262197,78.109,78.077,12.80781599]
[1770943162198,4.61729252,78.132,78.077,12.80781599]
[1770943162199,4.04442704,78.12,78.081,0.5]
[1770943162507,12.79983616,78.126,78.081,0.5]
[1770943162801,4.04442704,78.12,78.082,12.80704899]
[1770943162988,4.03750801,78.12,78.083,0.5]
[1770943164393,4.03750801,78.11,78.083,0.5]
[1770943164594,4.61729252,78.138,78.084,55.72]
[1770943164595,4.03750801,78.1,78.084,55.72]
[1770943164904,4.03750801,78.11,78.082,0.5]
[1770943165703,4.03750801,78.12,78.082,0.5]
[1770943167103,12.80098311,78.119,78.083,12.80688498]
[1770943167311,4.03750801,78.11,78.084,0.5]
[1770943167606,12.80098311,78.119,78.084,0.5]
[1770943167780,51.18443804,78.149,78.083,12.80688498]
[1770943167781,4.03750801,78.13,78.091,0.5]
[1770943167984,4.03750801,78.13,78.093,0.5]
[1770943168584,12.79770665,78.139,78.093,0.5]
[1770943168790,12.79770665,78.139,78.101,0.5]
[1770943169392,12.79770665,78.139,78.103,0.5]
[1770943169800,12.79770665,78.139,78.104,55.72]
[1770943170004,12.79770665,78.139,78.105,0.5]
[1770943170908,12.79770665,78.139,78.107,0.5]
[1770943171785,4.03750801,78.13,78.107,0.5]
[1770943171985,44.79197327,78.139,78.107,0.5]
[1770943172190,12.79770665,78.139,78.107,0.5]
[1770943173707,17.41401655,78.145,78.109,0.5]
[1770943174016,4.03750801,78.14,78.109,0.5]
[1770943175210,12.79672403,78.145,78.111,0.5]
[1770943175598,4.03750801,78.15,78.111,0.5]
[1770943175909,0.2,78.16,78.088,5.36086188]
[1770943175910,12.79482691,78.157,78.121,0.5]
[1770943177816,12.79482691,78.157,78.123,0.5]
[1770943178710,4.03750801,78.16,78.124,0.5]
[1770943180315,4.23750801,78.18,78.131,0.5]
[1770943180514,4.23750801,78.18,78.133,0.5]
[1770943181503,4.23750801,78.18,78.141,0.5]
[1770943182617,12.7918136,78.175,78.143,0.5]
[1770943183400,0.2,78.18,78.143,0.5]
[1770943183615,0.2,78.18,78.16,4.03750801]
[1770943183812,0.2,78.18,78.161,0.48457664]
[1770943185332,0.2,78.18,78.163,0.48457664]
[1770943185637,1e-08,78.18,78.171,0.48457664]
[1770943186705,1e-08,78.18,78.173,0.48457664]
[1770943188239,0.2,78.21,78.172,12.79230414]
[1770943188528,4.23750801,78.21,78.181,0.48457664]
[1770943188707,4.23750801,78.21,78.183,0.48457664]
[1770943189102,12.98625222,78.209,78.183,0.48457664]
[1770943189323,0.2,78.199,78.175,0.48457664]
[1770943190524,4.03750801,78.2,78.175,0.48457664]
[1770943191625,0.2,78.21,78.181,0.48457664]
[1770943192319,0.2,78.209,78.182,55.82]
[1770943193027,0.2,78.199,78.174,0.48457664]
[1770943193326,0.2,78.199,78.176,0.48457664]
[1770943193520,0.2,78.197,78.171,0.48457664]
[1770943194627,4.03750801,78.2,78.172,0.48457664]
[1770943194833,12.78691915,78.205,78.172,0.48457664]
[1770943195014,4.03750801,78.2,78.172,0.48457664]
[1770943195532,0.2,78.204,78.172,0.48457664]
[1770943196129,0.2,78.204,78.171,55.82]
[1770943196130,4.03750801,78.2,78.174,0.48457664]
[1770943197133,4.23750801,78.2,78.174,0.48457664]
[1770943197820,4.23750801,78.2,78.171,55.82]
[1770943197821,0.2,78.199,78.171,55.82]
[1770943198027,0.2,78.189,78.161,13.27858545]
[1770943198225,0.2,78.189,78.162,55.86]
[1770943198820,0.2,78.189,78.163,0.48457664]
[1770943200727,4.03750801,78.19,78.165,0.45729106]
[1770943200921,0.2,78.196,78.165,0.45729106]
[1770943201121,4.03750801,78.19,78.165,0.45729106]
[1770943201430,0.2,78.189,78.165,0.45729106]
[1770943202018,0.2,78.189,78.162,55.86]
[1770943202214,0.2,78.179,78.157,0.45729106]
[1770943202437,0.2,78.179,78.14,36.03097401]
[1770943202438,4.03750801,78.17,78.15,0.45729106]
[1770943202731,0.2,78.179,78.15,0.45729106]
[1770943202937,0.2,78.187,78.152,0.45729106]
[1770943203237,4.03750801,78.18,78.152,0.45729106]
[1770943203436,4.03750801,78.18,78.154,0.45729106]
[1770943203649,4.03750801,78.18,78.156,0.45729106]
[1770943204735,4.03750801,78.18,78.158,0.45729106]
[1770943205319,4.03750801,78.18,78.158,55.92]
[1770943205522,4.03750801,78.18,78.159,0.45729106]
[1770943206142,12.99001355,78.186,78.159,0.45729106]
[1770943206422,12.99001355,78.186,78.161,0.45729106]
[1770943206423,0.2,78.185,78.161,0.45729106]
[1770943207669,0.2,78.191,78.161,0.45729106]
[1770943207959,0.2,78.189,78.161,0.45729106]
[1770943208260,4.03750801,78.17,78.154,0.45729106]
[1770943208563,4.03750801,78.18,78.156,0.45729106]
[1770943208941,0.2,78.185,78.156,0.45729106]
[1770943209344,4.03750801,78.18,78.156,0.45729106]
[1770943211556,12.78993962,78.187,78.158,0.45729106]
[1770943211859,4.23750801,78.24,78.157,12.79475926]
[1770943211860,0.2,78.22,78.181,0.45729106]
[1770943212037,12.78388363,78.224,78.183,0.45729106]
[1770943212240,12.78388363,78.224,78.191,0.45729106]
[1770943213654,12.78388363,78.224,78.192,12.78903212]
[1770943213937,12.78388363,78.224,78.194,0.45729106]
[1770943214143,17.02201901,78.22,78.194,0.45729106]
[1770943214554,12.984511,78.22,78.194,0.45729106]
[1770943216063,0.2,78.22,78.196,0.45729106]
[1770943216260,12.78371256,78.225,78.196,0.45729106]
[1770943216558,12.78357337,78.226,78.196,0.45729106]
[1770943218858,0.2,78.217,78.196,0.45729106]
[1770943219061,0.2,78.224,78.196,0.45729106]
[1770943219461,12.78400618,78.223,78.196,0.45729106]
[1770943219849,12.78400618,78.223,78.197,0.45729106]
[1770943223761,0.2,78.209,78.181,0.45729106]
[1770943223954,0.2,78.208,78.19,56.1]
[1770943224453,0.2,78.214,78.191,0.45729106]
[1770943224666,0.2,78.214,78.192,0.45729106]
[1770943224975,12.7849472,78.217,78.192,0.45729106]
[1770943225977,12.78568559,78.213,78.192,0.45729106]
[1770943226476,12.7850509,78.217,78.192,0.45729106]
[1770943226975,12.78559941,78.213,78.192,0.45729106]
[1770943228264,0.2,78.216,78.192,0.45729106]
[1770943229353,12.78550081,78.214,78.192,0.45729106]
[1770943229776,0.2,78.209,78.191,56.1]
[1770943229975,0.2,78.199,78.173,56.18]
[1770943230183,0.2,78.189,78.173,56.18]
[1770943231665,0.2,78.188,78.162,0.4657517]
[1770943231967,4.02759006,78.18,78.161,0.5]
[1770943232168,12.78959356,78.189,78.161,0.5]
[1770943233762,12.78959356,78.189,78.163,0.5]
[1770943234183,3.52759006,78.2,78.165,0.5]
[1770943234684,12.78803736,78.199,78.165,0.5]
[1770943235984,12.78803736,78.199,78.164,56.2]
[1770943235985,12.78717917,78.204,78.171,0.5]
[1770943236189,12.78650737,78.208,78.173,0.5]
[1770943237468,0.2,78.21,78.181,0.5]
[1770943237683,0.2,78.21,78.191,0.5]
[1770943237890,0.2,78.21,78.193,0.5]
[1770943238191,0.2,78.21,78.195,0.5]
[1770943238890,12.7832554,78.228,78.196,0.4719878]
[1770943239186,12.7832554,78.228,78.197,0.4719878]
[1770943239384,12.9832554,78.228,78.197,0.4719878]
[1770943239683,12.7832554,78.228,78.197,0.4719878]
[1770943240081,12.7832554,78.228,78.199,0.4719878]
[1770943240280,0.2,78.23,78.201,0.4719878]
[1770943240483,0.2,78.23,78.203,0.4719878]
[1770943240796,0.2,78.23,78.205,0.4719878]
[1770943241367,0.2,78.23,78.207,0.4719878]
[1770943242566,0.2,78.23,78.209,0.4719878]
[1770943242988,0.2,78.24,78.211,0.4719878]
[1770943243204,0.2,78.24,78.221,0.4719878]
[1770943243373,0.2,78.26,78.223,0.4719878]
[1770943243677,0.2,78.26,78.208,95.89811782]
[1770943243678,4.02759006,78.28,78.241,0.5]
[1770943243880,4.02759006,78.28,78.243,0.5]
[1770943244069,31.9343464,78.286,78.208,210.97585921]
[1770943244070,4.02759006,78.27,78.235,0.5]
[1770943244483,4.02759006,78.27,78.233,56.24]
[1770943244484,12.77645044,78.269,78.237,0.5]
[1770943244965,4.02759006,78.27,78.237,0.5]
[1770943245379,4.02759006,78.27,78.239,0.5]
[1770943246774,12.77645044,78.269,78.239,0.5]
[1770943249198,12.77645044,78.269,78.241,0.5]
[1770943250800,4.02759006,78.26,78.241,0.5]
[1770943251294,12.77716858,78.265,78.241,0.5]
[1770943252284,4.02759006,78.27,78.241,0.5]
[1770943252497,16.80228171,78.28,78.243,0.5]
[1770943252698,16.80228171,78.28,78.251,0.5]
[1770943256389,16.80228171,78.28,78.252,0.5]
[1770943258703,16.80228171,78.28,78.245,0.5]
[1770943258704,4.02759006,78.27,78.245,0.5]
[1770943258913,4.02759006,78.27,78.241,0.5]
[1770943260096,35.96422777,78.28,78.243,0.5]
[1770943260492,4.02759006,78.28,78.243,0.5]
[1770943261907,4.02759006,78.26,78.242,12.78085938]
[1770943262099,4.02759006,78.26,78.238,0.5]
[1770943263610,4.02759006,78.26,78.22,4.02759006]
[1770943263611,0.4774985,78.249,78.223,12.78386375]
[1770943264206,0.4774985,78.249,78.198,5.36086188]
[1770943264207,0.4774985,78.239,78.2,4.02759006]
[1770943264412,0.4774985,78.239,78.201,56.26]
[1770943264613,0.4774985,78.229,78.19,4.02759006]
[1770943264929,0.4774985,78.229,78.191,56.26]
[1770943265607,0.4774985,78.229,78.192,0.46247455]
[1770943266509,0.4774985,78.237,78.201,0.46247455]
[1770943267600,0.4774985,78.243,78.211,0.46247455]
[1770943267802,0.4774985,78.243,78.212,0.46247455]
[1770943268026,0.4774985,78.243,78.214,0.46247455]
[1770943268615,0.4774985,78.243,78.216,0.46247455]
[1770943269916,0.4774985,78.243,78.218,0.46247455]
[1770943271420,4.50508856,78.24,78.218,0.46247455]
[1770943272006,13.25776536,78.246,78.218,0.46247455]
[1770943272220,0.4774985,78.245,78.218,0.46247455]
[1770943272426,0.4774985,78.245,78.22,0.46247455]
[1770943275114,0.4774985,78.245,78.215,69.1052237]
[1770943275115,0.4774985,78.239,78.215,56.78247455]
[1770943275302,0.4774985,78.239,78.216,0.46247455]
[1770943275826,0.4774985,78.239,78.216,13.24758245]
[1770943276320,0.4774985,78.239,78.216,12.7851079]
[1770943276526,0.4774985,78.229,78.204,56.32]
[1770943276707,0.4774985,78.229,78.199,0.46247455]
[1770943276903,0.4774985,78.219,78.193,0.46247455]
[1770943277115,0.4774985,78.209,78.187,0.46247455]
[1770943277314,0.4774985,78.209,78.186,12.78999432]
[1770943277524,0.4774985,78.209,78.182,12.79061358]
[1770943277705,0.4774985,78.199,78.176,0.46247455]
[1770943277909,0.4774985,78.199,78.17,0.46247455]
[1770943277910,4.02759006,78.19,78.17,0.46247455]
[1770943278108,0.4774985,78.189,78.164,0.46247455]
[1770943278313,0.4774985,78.189,78.165,12.79344975]
[1770943278747,0.4774985,78.179,78.151,0.46247455]
[1770943279036,0.4774985,78.179,78.153,0.46247455]
[1770943279729,0.4774985,78.179,78.155,0.46247455]
[1770943280325,0.4774985,78.179,78.14,4.02759006]
[1770943280326,4.02759006,78.17,78.149,0.46247455]
[1770943280511,4.50508856,78.17,78.15,56.36]
[1770943281213,0.4774985,78.176,78.151,0.46247455]
[1770943285033,0.4774985,78.176,78.153,0.46247455]
[1770943289735,12.79181323,78.175,78.153,0.46247455]
[1770943289941,4.03190635,78.17,78.153,0.46247455]
[1770943290241,0.4774985,78.174,78.153,0.46247455]
[1770943290844,0.47589634,78.179,78.153,0.46247455]
[1770943291141,0.47589634,78.186,78.155,0.48162636]
[1770943292147,0.47589634,78.186,78.157,0.48162636]
[1770943292530,0.47589634,78.195,78.171,0.48162636]
[1770943292733,31.94942293,78.249,78.181,0.48794817]
[1770943292930,4.03190635,78.23,78.191,0.48794817]
[1770943293244,4.03190635,78.22,78.193,0.48794817]
[1770943293419,4.03190635,78.21,78.183,0.48794817]
[1770943293622,4.03190635,78.2,78.182,56.56]
[1770943294548,4.03190635,78.2,78.182,57.04794817]
[1770943294754,4.05601001,78.21,78.184,0.48794817]
[1770943294929,4.03190635,78.21,78.184,0.48794817]
[1770943295246,4.05601001,78.21,78.184,0.48794817]
[1770943295421,31.9597318,78.224,78.184,0.5]
[1770943295622,4.03190635,78.21,78.184,0.5]
[1770943296045,4.03190635,78.22,78.184,0.5]
[1770943296526,4.03190635,78.22,78.186,0.5]
[1770943296823,4.03190635,78.22,78.187,12.78984997]
[1770943297028,4.61729252,78.226,78.187,12.78984997]
[1770943297029,4.03190635,78.21,78.188,0.5]
[1770943299551,4.03190635,78.2,78.183,56.6]
[1770943299758,4.03190635,78.2,78.181,0.5]
[1770943301053,12.78625222,78.209,78.181,0.5]
[1770943302452,4.03190635,78.19,78.169,0.5]
[1770943302632,4.03190635,78.19,78.164,0.5]
[1770943303448,4.03190635,78.18,78.164,0.5]
[1770943303854,4.03190635,78.18,78.16,57.14]
[1770943304044,4.03190635,78.18,78.161,12.79410447]
[1770943304234,4.03190635,78.18,78.161,13.29410447]
[1770943304453,4.61729252,78.204,78.162,0.5]
[1770943304635,4.03190635,78.19,78.162,0.5]
[1770943305347,4.03190635,78.19,78.164,0.5]
[1770943306946,4.03190635,78.19,78.165,12.79344975]
[1770943307150,4.03190635,78.19,78.166,0.5]
[1770943308743,4.03190635,78.18,78.163,56.66]
[1770943309255,4.03190635,78.19,78.161,0.5]
[1770943312042,4.03190635,78.19,78.163,0.5]
[1770943312962,4.03190635,78.19,78.164,56.74]
[1770943313166,31.96115215,78.22,78.171,0.5]
[1770943313450,51.12678857,78.237,78.171,0.5]
[1770943313451,4.03190635,78.2,78.171,0.5]
[1770943314155,12.78788731,78.199,78.171,0.5]
[1770943314448,4.03190635,78.19,78.171,0.5]
[1770943315557,12.78788731,78.199,78.173,0.5]
[1770943316753,4.03190635,78.19,78.173,0.5]
[1770943318443,31.96571834,78.209,78.173,0.5]
[1770943318444,4.03190635,78.2,78.173,0.5]
[1770943319763,4.03190635,78.18,78.167,56.76]
[1770943319942,4.03190635,78.18,78.159,0.5]
[1770943320254,44.75760559,78.199,78.159,0.5]
[1770943320255,4.03190635,78.19,78.159,0.5]
[1770943320636,57.03282525,78.225,78.158,12.7945702]
[1770943320637,4.03190635,78.2,78.161,0.5]
[1770943320844,4.03190635,78.21,78.171,0.5]
[1770943321049,4.03190635,78.21,78.173,0.5]
[1770943322346,12.78625222,78.209,78.175,0.5]
[1770943324458,12.78625222,78.209,78.177,0.5]
[1770943324958,4.03190635,78.2,78.177,0.5]
[1770943325472,4.03190635,78.2,78.173,57.28]
[1770943325759,4.03190635,78.2,78.174,0.5]
[1770943325970,12.78625222,78.209,78.175,0.5]
[1770943327166,12.78625222,78.209,78.177,0.5]
[1770943330344,12.78625222,78.209,78.179,0.5]
[1770943332159,4.03190635,78.2,78.179,0.5]
[1770943333265,12.78788731,78.199,78.173,57.32]
[1770943333471,12.78788731,78.199,78.173,0.5]
[1770943333671,4.03190635,78.19,78.173,0.5]
[1770943334575,4.03190635,78.2,78.173,0.5]
[1770943334769,4.03190635,78.19,78.157,0.5]
[1770943336777,4.03190635,78.19,78.159,0.5]
[1770943337775,16.82132929,78.19,78.159,0.5]
[1770943338790,16.82132929,78.19,78.161,0.5]
[1770943340876,16.82132929,78.19,78.16,12.79426816]
[1770943340877,16.82132929,78.19,78.163,0.5]
[1770943341077,4.03190635,78.2,78.163,0.5]
[1770943342683,4.03190635,78.2,78.165,0.5]
[1770943342986,4.03190635,78.19,78.166,0.5]
[1770943343872,4.03190635,78.19,78.162,0.5]
[1770943344981,4.03190635,78.19,78.163,12.7937771]
[1770943345164,4.03190635,78.19,78.164,0.5]
[1770943346977,4.03055683,78.19,78.164,0.5]
[1770943347182,4.03055683,78.19,78.165,12.79344975]
[1770943347385,16.81836308,78.2,78.166,0.5]
[1770943349693,16.81836308,78.2,78.168,0.5]
[1770943350065,16.81836308,78.2,78.168,0.257]
[1770943351383,0.243,78.217,78.17,4.03055683]
[1770943351575,12.78505651,78.217,78.18,4.03055683]
[1770943352094,13.02805651,78.217,78.181,0.45172749]
[1770943352294,4.03055683,78.21,78.181,0.45172749]
[1770943353801,4.27355683,78.21,78.183,0.49388621]
[1770943355576,0.243,78.209,78.185,0.49388621]
[1770943358490,0.243,78.199,78.173,56.94]
[1770943358798,0.243,78.199,78.173,57.43388621]
[1770943359376,0.243,78.199,78.174,0.49388621]
[1770943359578,0.243,78.199,78.175,12.79181323]
[1770943359791,0.243,78.199,78.176,0.49388621]
[1770943361198,4.03055683,78.19,78.176,0.49388621]
[1770943361399,4.52498137,78.19,78.173,56.94]
[1770943362878,0.49442454,78.189,78.173,56.94]
[1770943363495,0.49442454,78.189,78.168,13.28677905]
[1770943363805,0.49442454,78.189,78.169,0.49388621]
[1770943366799,0.49442454,78.189,78.17,12.79263144]
[1770943367002,0.49442454,78.189,78.17,13.28651765]
[1770943373409,0.49442454,78.189,78.171,0.49388621]
[1770943376716,0.49442454,78.189,78.172,0.49388621]
[1770943378012,0.49442454,78.196,78.172,0.49388621]
[1770943379918,0.49442454,78.194,78.172,0.49388621]
[1770943383210,0.48270057,78.179,78.156,0.4958522]